[Event "*** Titled Tuesday Blitz"]
[Site "Chess.com"]
[Date "2020.11.10"]
[Round "8"]
[White "kuban1991"]
[Black "Grandelicious"]
[Result "0-1"]
[WhiteElo "2879"]
[BlackElo "2811"]
[TimeControl "180+1"]
[EndTime "11:33:14 PST"]
[Termination "Grandelicious won by resignation"]

1. Nf3 {[%clk 0:02:59.7]} 1... c5 {[%clk 0:02:58.8]} 2. g3 {[%clk 0:02:59.8]}
2... Nc6 {[%clk 0:02:58.9]} 3. Bg2 {[%clk 0:03:00.1]} 3... e5 {[%clk 0:02:58.4]}
4. c4 {[%clk 0:02:59.7]} 4... g6 {[%clk 0:02:58.6]} 5. O-O {[%clk 0:02:59.7]}
5... Bg7 {[%clk 0:02:59.2]} 6. Nc3 {[%clk 0:03:00.3]} 6... Nge7 {[%clk
0:02:58.9]} 7. Ne1 {[%clk 0:03:00.7]} 7... d6 {[%clk 0:02:57]} 8. Nc2 {[%clk
0:03:00.7]} 8... Be6 {[%clk 0:02:56.4]} 9. Ne3 {[%clk 0:03:00.7]} 9... h5 {[%clk
0:02:56.4]} 10. h4 {[%clk 0:02:59.5]} 10... Qd7 {[%clk 0:02:53.3]} 11. d3 {[%clk
0:02:58.9]} 11... f5 {[%clk 0:02:41.4]} 12. Ned5 {[%clk 0:02:54.5]} 12... f4
{[%clk 0:02:41.9]} 13. Kh2 {[%clk 0:02:25.3]} 13... O-O {[%clk 0:02:33.8]} 14.
Rb1 {[%clk 0:02:19.9]} 14... Nd4 {[%clk 0:02:24.7]} 15. e3 {[%clk 0:02:16.4]}
15... fxg3+ {[%clk 0:02:14.9]} 16. fxg3 {[%clk 0:02:15.1]} 16... Bg4 {[%clk
0:02:13.6]} 17. Qa4 {[%clk 0:01:55.3]} 17... b5 {[%clk 0:01:54.1]} 18. Nxe7+
{[%clk 0:00:59.9]} 18... Qxe7 {[%clk 0:01:55]} 19. cxb5 {[%clk 0:01:00.6]} 19...
Rxf1 {[%clk 0:01:29.8]} 20. Bxf1 {[%clk 0:01:01.5]} 20... Nf3+ {[%clk
0:01:22.2]} 21. Kh1 {[%clk 0:01:01.1]} 21... Rf8 {[%clk 0:01:14.7]} 22. Bg2
{[%clk 0:00:49.6]} 22... Nxh4 {[%clk 0:01:06.3]} 23. Nd5 {[%clk 0:00:42.7]}
23... Qd8 {[%clk 0:01:06.2]} 24. Qxa7 {[%clk 0:00:22.8]} 24... Nxg2 {[%clk
0:00:59.8]} 25. Ne7+ {[%clk 0:00:23]} 25... Kh7 {[%clk 0:00:58.6]} 26. Kxg2
{[%clk 0:00:23.6]} 26... Rf7 {[%clk 0:00:54.8]} 27. e4 {[%clk 0:00:19.9]} 27...
Rxe7 {[%clk 0:00:52.1]} 28. Bg5 {[%clk 0:00:19.4]} 28... Rxa7 {[%clk 0:00:49.8]}
29. Bxd8 {[%clk 0:00:18.1]} 29... Rxa2 {[%clk 0:00:50.3]} 30. b6 {[%clk
0:00:15.9]} 30... Bc8 {[%clk 0:00:48]} 31. Be7 {[%clk 0:00:16.1]} 31... Ba6
{[%clk 0:00:44.2]} 32. Bxd6 {[%clk 0:00:15.6]} 32... Bxd3 {[%clk 0:00:43.6]} 33.
b7 {[%clk 0:00:06]} 33... Bxe4+ {[%clk 0:00:43.4]} 34. Kh3 {[%clk 0:00:06.9]}
34... Bxb7 {[%clk 0:00:43.2]} 35. Bxc5 {[%clk 0:00:07.8]} 35... Be4 {[%clk
0:00:42.2]} 36. Re1 {[%clk 0:00:07.2]} 36... Bf5+ {[%clk 0:00:42.4]} 37. g4
{[%clk 0:00:06.6]} 37... Bxg4+ {[%clk 0:00:41.2]} 38. Kg3 {[%clk 0:00:07.5]}
38... Rxb2 {[%clk 0:00:40.4]} 0-1

[Event "*** Titled Tuesday Blitz"]
[Site "Chess.com"]
[Date "2020.11.10"]
[Round "8"]
[White "andriipalchuk"]
[Black "zivicd"]
[Result "1-0"]
[WhiteElo "2443"]
[BlackElo "2249"]
[TimeControl "180+1"]
[EndTime "11:33:14 PST"]
[Termination "andriipalchuk won on time"]

1. e4 {[%clk 0:03:00.9]} 1... c5 {[%clk 0:02:56.9]} 2. Nf3 {[%clk 0:03:00.8]}
2... e6 {[%clk 0:02:56.2]} 3. c3 {[%clk 0:02:58.5]} 3... d5 {[%clk 0:02:55.6]}
4. exd5 {[%clk 0:02:58.3]} 4... Qxd5 {[%clk 0:02:56.1]} 5. d4 {[%clk 0:02:59.2]}
5... Nf6 {[%clk 0:02:53.7]} 6. Na3 {[%clk 0:02:59.7]} 6... cxd4 {[%clk 0:02:53]}
7. Nb5 {[%clk 0:03:00.2]} 7... Qd8 {[%clk 0:02:50.9]} 8. Nbxd4 {[%clk 0:02:55]}
8... a6 {[%clk 0:02:47.6]} 9. Bd3 {[%clk 0:02:53.3]} 9... Be7 {[%clk 0:02:44.3]}
10. O-O {[%clk 0:02:52.7]} 10... b6 {[%clk 0:02:36.6]} 11. Qe2 {[%clk
0:02:49.8]} 11... Bb7 {[%clk 0:02:26.4]} 12. Rd1 {[%clk 0:02:50.2]} 12... Qc8
{[%clk 0:02:20.6]} 13. Ng5 {[%clk 0:02:30.3]} 13... O-O {[%clk 0:01:54]} 14. h4
{[%clk 0:02:20.6]} 14... Nc6 {[%clk 0:01:49.7]} 15. Ndf3 {[%clk 0:02:12]} 15...
h6 {[%clk 0:01:42.9]} 16. Nh3 {[%clk 0:02:10.9]} 16... Rd8 {[%clk 0:01:36.1]}
17. Be3 {[%clk 0:01:53.9]} 17... b5 {[%clk 0:01:32]} 18. Nf4 {[%clk 0:01:49]}
18... Bf8 {[%clk 0:01:00.5]} 19. Bb6 {[%clk 0:01:35.9]} 19... Rd7 {[%clk
0:00:58.9]} 20. a4 {[%clk 0:01:05.3]} 20... b4 {[%clk 0:00:45.5]} 21. cxb4
{[%clk 0:00:47.5]} 21... Nxb4 {[%clk 0:00:26.3]} 22. Ne5 {[%clk 0:00:46.2]}
22... Nxd3 {[%clk 0:00:22.5]} 23. Nxd7 {[%clk 0:00:25.3]} 23... Nxf4 {[%clk
0:00:21.5]} 24. Nxf6+ {[%clk 0:00:25.5]} 24... gxf6 {[%clk 0:00:21.7]} 25. Qg4+
{[%clk 0:00:26.2]} 25... Ng6 {[%clk 0:00:15.6]} 26. Rac1 {[%clk 0:00:16.7]}
26... Qe8 {[%clk 0:00:11.8]} 27. h5 {[%clk 0:00:13.6]} 27... f5 {[%clk
0:00:11.2]} 28. Qg3 {[%clk 0:00:13.8]} 28... f4 {[%clk 0:00:02.9]} 29. Qg4
{[%clk 0:00:13.8]} 1-0

[Event "*** Titled Tuesday Blitz"]
[Site "Chess.com"]
[Date "2020.11.10"]
[Round "8"]
[White "VerdeNotte"]
[Black "anon102030"]
[Result "1-0"]
[WhiteElo "2896"]
[BlackElo "2753"]
[TimeControl "180+1"]
[EndTime "11:33:18 PST"]
[Termination "VerdeNotte won by resignation"]

1. c4 {[%clk 0:03:00.9]} 1... e5 {[%clk 0:02:59.3]} 2. g3 {[%clk 0:03:01]} 2...
Nc6 {[%clk 0:02:59.9]} 3. Bg2 {[%clk 0:03:01.3]} 3... g6 {[%clk 0:03:00.6]} 4.
Nc3 {[%clk 0:03:01]} 4... Bg7 {[%clk 0:03:01.2]} 5. Rb1 {[%clk 0:02:59.8]} 5...
d6 {[%clk 0:03:01.8]} 6. b4 {[%clk 0:02:59.8]} 6... a6 {[%clk 0:03:01.1]} 7. a4
{[%clk 0:02:59.6]} 7... f5 {[%clk 0:02:51.5]} 8. e3 {[%clk 0:02:55.8]} 8... Be6
{[%clk 0:02:49.7]} 9. b5 {[%clk 0:02:52.2]} 9... axb5 {[%clk 0:02:46.9]} 10.
axb5 {[%clk 0:02:52.4]} 10... Na5 {[%clk 0:02:47.3]} 11. d3 {[%clk 0:02:37.9]}
11... e4 {[%clk 0:02:37.8]} 12. Nd5 {[%clk 0:02:36]} 12... exd3 {[%clk
0:02:34.3]} 13. Nh3 {[%clk 0:02:28.1]} 13... c6 {[%clk 0:02:29.2]} 14. bxc6
{[%clk 0:02:10.3]} 14... bxc6 {[%clk 0:02:30.1]} 15. Nhf4 {[%clk 0:01:45.6]}
15... Bf7 {[%clk 0:02:28.3]} 16. Nb4 {[%clk 0:01:43]} 16... Ne7 {[%clk
0:02:11.4]} 17. O-O {[%clk 0:01:32.9]} 17... O-O {[%clk 0:02:06.4]} 18. Nfxd3
{[%clk 0:01:29.7]} 18... Bxc4 {[%clk 0:02:03]} 19. Bb2 {[%clk 0:01:28.9]} 19...
Bxb2 {[%clk 0:01:48.6]} 20. Rxb2 {[%clk 0:01:29.8]} 20... Rb8 {[%clk 0:01:46.9]}
21. Re1 {[%clk 0:00:47.6]} 21... c5 {[%clk 0:01:39.1]} 22. Nc2 {[%clk
0:00:47.8]} 22... Rxb2 {[%clk 0:01:31.1]} 23. Nxb2 {[%clk 0:00:48.7]} 23... Bb3
{[%clk 0:01:31.6]} 24. Qd3 {[%clk 0:00:48.8]} 24... d5 {[%clk 0:01:28.8]} 25.
Qc3 {[%clk 0:00:46.8]} 25... Qb6 {[%clk 0:01:24.1]} 26. Rc1 {[%clk 0:00:43.3]}
26... Rd8 {[%clk 0:01:14.9]} 27. Nd3 {[%clk 0:00:40.6]} 27... c4 {[%clk
0:01:01.6]} 28. Nf4 {[%clk 0:00:38.2]} 28... Bxc2 {[%clk 0:00:56.2]} 29. Rxc2
{[%clk 0:00:35.8]} 29... d4 {[%clk 0:00:46.6]} 30. exd4 {[%clk 0:00:33.5]} 30...
Rxd4 {[%clk 0:00:47.5]} 31. Bf3 {[%clk 0:00:30.6]} 31... g5 {[%clk 0:00:43.4]}
32. Ne6 {[%clk 0:00:28.3]} 32... Qxe6 {[%clk 0:00:24.1]} 33. Qxd4 {[%clk
0:00:28.2]} 33... g4 {[%clk 0:00:24.8]} 34. Re2 {[%clk 0:00:25.4]} 34... Qf7
{[%clk 0:00:20.6]} 35. Qd8+ {[%clk 0:00:20.3]} 35... Qf8 {[%clk 0:00:17.8]} 36.
Bd5+ {[%clk 0:00:20.1]} 1-0

[Event "*** Titled Tuesday Blitz"]
[Site "Chess.com"]
[Date "2020.11.10"]
[Round "8"]
[White "VladimirBugayev"]
[Black "Makswolf200817"]
[Result "0-1"]
[WhiteElo "2252"]
[BlackElo "2446"]
[TimeControl "180+1"]
[EndTime "11:33:20 PST"]
[Termination "Makswolf200817 won by resignation"]

1. e4 {[%clk 0:02:59.3]} 1... c5 {[%clk 0:02:59.2]} 2. Nc3 {[%clk 0:02:59.3]}
2... e6 {[%clk 0:02:58.1]} 3. f4 {[%clk 0:02:58.2]} 3... d5 {[%clk 0:02:57.5]}
4. Nf3 {[%clk 0:02:58.3]} 4... Nf6 {[%clk 0:02:56.7]} 5. Bb5+ {[%clk 0:02:50.9]}
5... Nc6 {[%clk 0:02:53.4]} 6. Bxc6+ {[%clk 0:02:46.9]} 6... bxc6 {[%clk
0:02:53]} 7. d3 {[%clk 0:02:47.4]} 7... Be7 {[%clk 0:02:50.9]} 8. Qe2 {[%clk
0:02:47.1]} 8... O-O {[%clk 0:02:50.6]} 9. O-O {[%clk 0:02:45.5]} 9... Rb8
{[%clk 0:02:50.3]} 10. b3 {[%clk 0:02:31.7]} 10... Re8 {[%clk 0:02:34.9]} 11.
Kh1 {[%clk 0:02:07]} 11... a5 {[%clk 0:02:16.7]} 12. Na4 {[%clk 0:01:52.3]}
12... Ba6 {[%clk 0:02:06.1]} 13. e5 {[%clk 0:01:50.5]} 13... Nd7 {[%clk
0:02:04.7]} 14. Qf2 {[%clk 0:01:40.3]} 14... c4 {[%clk 0:02:02.8]} 15. dxc4
{[%clk 0:01:30.8]} 15... dxc4 {[%clk 0:02:02.1]} 16. Be3 {[%clk 0:01:30.8]}
16... cxb3 {[%clk 0:02:00.9]} 17. cxb3 {[%clk 0:01:30.2]} 17... Bxf1 {[%clk
0:01:59.8]} 18. Rxf1 {[%clk 0:01:29.5]} 18... Nf8 {[%clk 0:01:55.5]} 19. Rc1
{[%clk 0:01:26.5]} 19... Qd5 {[%clk 0:01:51.3]} 20. h3 {[%clk 0:01:20.6]} 20...
Ng6 {[%clk 0:01:49.3]} 21. g3 {[%clk 0:01:13]} 21... Red8 {[%clk 0:01:45.9]} 22.
Kg2 {[%clk 0:01:12.2]} 22... Qe4 {[%clk 0:01:32.1]} 23. Rc4 {[%clk 0:01:04.7]}
23... Qb1 {[%clk 0:01:05.9]} 24. Rc1 {[%clk 0:01:01.9]} 24... Qf5 {[%clk
0:01:01.6]} 25. Rc4 {[%clk 0:00:52.4]} 25... Rb4 {[%clk 0:00:48.8]} 26. Nd4
{[%clk 0:00:37.2]} 26... Qe4+ {[%clk 0:00:44.9]} 27. Qf3 {[%clk 0:00:33.2]}
27... Qxf3+ {[%clk 0:00:40.9]} 28. Kxf3 {[%clk 0:00:32.1]} 28... Rxc4 {[%clk
0:00:33.8]} 29. bxc4 {[%clk 0:00:31.8]} 29... Rc8 {[%clk 0:00:33.1]} 30. Nb3
{[%clk 0:00:28.1]} 30... Bb4 {[%clk 0:00:30.1]} 31. Bc1 {[%clk 0:00:19.3]} 31...
Rb8 {[%clk 0:00:26.8]} 32. a3 {[%clk 0:00:14.2]} 32... Bxa3 {[%clk 0:00:26.4]}
33. Nxa5 {[%clk 0:00:12.6]} 33... Bxc1 {[%clk 0:00:25.7]} 34. Nxc6 {[%clk
0:00:12.9]} 34... Rc8 {[%clk 0:00:25.8]} 0-1

[Event "*** Titled Tuesday Blitz"]
[Site "Chess.com"]
[Date "2020.11.10"]
[Round "8"]
[White "natelleka"]
[Black "canary2016"]
[Result "0-1"]
[WhiteElo "2129"]
[BlackElo "2017"]
[TimeControl "180+1"]
[EndTime "11:33:25 PST"]
[Termination "canary2016 won on time"]

1. e4 {[%clk 0:02:59.5]} 1... c6 {[%clk 0:02:57.6]} 2. d4 {[%clk 0:02:59.4]}
2... d5 {[%clk 0:02:57.5]} 3. f3 {[%clk 0:03:00]} 3... Qb6 {[%clk 0:02:56.1]} 4.
a4 {[%clk 0:02:59.2]} 4... e5 {[%clk 0:02:50.7]} 5. dxe5 {[%clk 0:02:55.4]} 5...
a5 {[%clk 0:02:50.6]} 6. exd5 {[%clk 0:02:51]} 6... Bc5 {[%clk 0:02:48.4]} 7.
Nh3 {[%clk 0:02:26.2]} 7... Bxh3 {[%clk 0:02:45.9]} 8. gxh3 {[%clk 0:02:25.4]}
8... cxd5 {[%clk 0:02:42.2]} 9. Qxd5 {[%clk 0:02:17.1]} 9... Nc6 {[%clk
0:02:41.6]} 10. Nc3 {[%clk 0:02:06]} 10... Nge7 {[%clk 0:02:35.7]} 11. Qe4
{[%clk 0:02:02.2]} 11... Bf2+ {[%clk 0:02:33.9]} 12. Ke2 {[%clk 0:01:59.4]}
12... Rd8 {[%clk 0:02:16]} 13. Nb5 {[%clk 0:01:00.9]} 13... O-O {[%clk
0:01:48.2]} 14. Bg5 {[%clk 0:00:44.7]} 14... Bg1 {[%clk 0:01:41.3]} 15. Bh4
{[%clk 0:00:31.1]} 15... Nd4+ {[%clk 0:01:20.3]} 16. Ke1 {[%clk 0:00:17.6]}
16... Nxb5 {[%clk 0:00:54.6]} 17. Bxb5 {[%clk 0:00:17]} 17... Rd4 {[%clk
0:00:45.9]} 18. Qg4 {[%clk 0:00:09.7]} 18... Rxg4 {[%clk 0:00:42.4]} 19. hxg4
{[%clk 0:00:09.7]} 19... Qe3+ {[%clk 0:00:38.6]} 20. Be2 {[%clk 0:00:08.9]}
20... Ng6 {[%clk 0:00:33.3]} 21. Bg3 {[%clk 0:00:08]} 21... Qc5 {[%clk
0:00:18.8]} 22. Kf1 {[%clk 0:00:07.7]} 22... Bd4 {[%clk 0:00:17.8]} 23. c3
{[%clk 0:00:07.8]} 23... Bxe5 {[%clk 0:00:17.8]} 24. Bf2 {[%clk 0:00:06.5]}
24... Qc6 {[%clk 0:00:15.2]} 25. h4 {[%clk 0:00:06.1]} 25... Nf4 {[%clk
0:00:14.8]} 26. Bb5 {[%clk 0:00:05.3]} 26... Qc7 {[%clk 0:00:14.3]} 27. h5
{[%clk 0:00:04.1]} 27... Rd8 {[%clk 0:00:13.6]} 28. g5 {[%clk 0:00:02.9]} 28...
Rd2 {[%clk 0:00:11.6]} 29. Be3 {[%clk 0:00:02.1]} 29... Rxb2 {[%clk 0:00:10.8]}
30. g6 {[%clk 0:00:01.7]} 30... fxg6 {[%clk 0:00:09.7]} 0-1

[Event "*** Titled Tuesday Blitz"]
[Site "Chess.com"]
[Date "2020.11.10"]
[Round "8"]
[White "Roman_Ovetchkin"]
[Black "GregShahade"]
[Result "0-1"]
[WhiteElo "2600"]
[BlackElo "2695"]
[TimeControl "180+1"]
[EndTime "11:33:26 PST"]
[Termination "GregShahade won by resignation"]

1. d4 {[%clk 0:03:00.9]} 1... Nf6 {[%clk 0:02:59.2]} 2. c4 {[%clk 0:02:59]} 2...
g6 {[%clk 0:02:59.7]} 3. Nc3 {[%clk 0:02:58.8]} 3... d5 {[%clk 0:02:59.9]} 4.
cxd5 {[%clk 0:02:58.4]} 4... Nxd5 {[%clk 0:03:00.8]} 5. e4 {[%clk 0:02:59]} 5...
Nxc3 {[%clk 0:03:01.2]} 6. bxc3 {[%clk 0:02:59.7]} 6... Bg7 {[%clk 0:03:01.3]}
7. Bc4 {[%clk 0:02:59.2]} 7... c5 {[%clk 0:03:01.1]} 8. Ne2 {[%clk 0:02:58.5]}
8... Nc6 {[%clk 0:03:01.7]} 9. Be3 {[%clk 0:02:58]} 9... O-O {[%clk 0:03:01.4]}
10. O-O {[%clk 0:02:57.6]} 10... e6 {[%clk 0:03:01.2]} 11. Qd2 {[%clk
0:02:55.7]} 11... b6 {[%clk 0:03:01.3]} 12. Rad1 {[%clk 0:02:47.9]} 12... Bb7
{[%clk 0:03:00.5]} 13. Bh6 {[%clk 0:02:41.9]} 13... Na5 {[%clk 0:02:45.1]} 14.
Bd3 {[%clk 0:02:34.6]} 14... Rc8 {[%clk 0:02:44.8]} 15. Bxg7 {[%clk 0:02:33.4]}
15... Kxg7 {[%clk 0:02:44.8]} 16. Qe3 {[%clk 0:02:26.9]} 16... Qe7 {[%clk
0:02:33.6]} 17. Ng3 {[%clk 0:02:15.5]} 17... Rfd8 {[%clk 0:02:24.3]} 18. e5
{[%clk 0:02:08.7]} 18... cxd4 {[%clk 0:02:15.9]} 19. cxd4 {[%clk 0:02:06.5]}
19... Nc4 {[%clk 0:02:16.3]} 20. Bxc4 {[%clk 0:02:00.8]} 20... Rxc4 {[%clk
0:02:17.2]} 21. Rd2 {[%clk 0:01:57.8]} 21... b5 {[%clk 0:02:03.7]} 22. Qf4
{[%clk 0:01:51.4]} 22... a5 {[%clk 0:01:44.1]} 23. h4 {[%clk 0:01:50.3]} 23...
h5 {[%clk 0:01:43]} 24. Rfd1 {[%clk 0:01:36.3]} 24... Rd7 {[%clk 0:01:42.1]} 25.
Nf1 {[%clk 0:01:35.8]} 25... b4 {[%clk 0:01:34.7]} 26. Ne3 {[%clk 0:01:35.2]}
26... Rc3 {[%clk 0:01:30.6]} 27. Qg3 {[%clk 0:00:52.9]} 27... a4 {[%clk
0:01:20.1]} 28. d5 {[%clk 0:00:52.3]} 28... Bxd5 {[%clk 0:01:00.4]} 29. Rxd5
{[%clk 0:00:50.9]} 29... Rxd5 {[%clk 0:00:55.1]} 30. Rxd5 {[%clk 0:00:39.6]}
30... exd5 {[%clk 0:00:52.1]} 31. Qf4 {[%clk 0:00:33.5]} 31... Rd3 {[%clk
0:00:32.6]} 32. Kh2 {[%clk 0:00:23]} 32... b3 {[%clk 0:00:29.7]} 33. Qxa4 {[%clk
0:00:16.8]} 33... b2 {[%clk 0:00:28.4]} 34. Qb5 {[%clk 0:00:16]} 34... Qxh4+
{[%clk 0:00:25.4]} 35. Kg1 {[%clk 0:00:15.3]} 35... Qd4 {[%clk 0:00:25.6]} 36.
Kh2 {[%clk 0:00:12.9]} 36... Qxe5+ {[%clk 0:00:25]} 37. g3 {[%clk 0:00:12.9]}
37... Rd2 {[%clk 0:00:19.5]} 38. Kg1 {[%clk 0:00:11.7]} 38... Qxe3 {[%clk
0:00:17.2]} 39. fxe3 {[%clk 0:00:09.8]} 39... Rd1+ {[%clk 0:00:17.6]} 0-1

[Event "*** Titled Tuesday Blitz"]
[Site "Chess.com"]
[Date "2020.11.10"]
[Round "8"]
[White "JoliyRoger"]
[Black "VladaSviridova"]
[Result "0-1"]
[WhiteElo "2355"]
[BlackElo "2254"]
[TimeControl "180+1"]
[EndTime "11:33:26 PST"]
[Termination "VladaSviridova won on time"]

1. Nf3 {[%clk 0:03:00.9]} 1... d5 {[%clk 0:02:59.3]} 2. d4 {[%clk 0:03:00.5]}
2... Nf6 {[%clk 0:02:59.2]} 3. c4 {[%clk 0:03:01.1]} 3... c6 {[%clk 0:02:59.3]}
4. Nbd2 {[%clk 0:03:00.5]} 4... Bf5 {[%clk 0:02:53.4]} 5. e3 {[%clk 0:03:00.6]}
5... e6 {[%clk 0:02:52.7]} 6. Be2 {[%clk 0:03:01.2]} 6... Nbd7 {[%clk
0:02:52.7]} 7. Nh4 {[%clk 0:03:00.4]} 7... Bg6 {[%clk 0:02:49.6]} 8. O-O {[%clk
0:03:00.9]} 8... Bd6 {[%clk 0:02:48.5]} 9. g3 {[%clk 0:03:00.6]} 9... O-O {[%clk
0:02:44.1]} 10. Nxg6 {[%clk 0:03:00]} 10... hxg6 {[%clk 0:02:43.8]} 11. Bf3
{[%clk 0:02:59.8]} 11... Rc8 {[%clk 0:02:34.7]} 12. b3 {[%clk 0:02:52.3]} 12...
Qe7 {[%clk 0:02:15.1]} 13. a4 {[%clk 0:02:44.7]} 13... a5 {[%clk 0:02:13.3]} 14.
Bb2 {[%clk 0:02:43.7]} 14... Bb4 {[%clk 0:02:12.2]} 15. Qe2 {[%clk 0:02:36.7]}
15... b6 {[%clk 0:02:10.7]} 16. Rfd1 {[%clk 0:02:36.7]} 16... Rfe8 {[%clk
0:02:10.2]} 17. h4 {[%clk 0:02:29.3]} 17... e5 {[%clk 0:01:58.2]} 18. dxe5
{[%clk 0:02:11.2]} 18... Nxe5 {[%clk 0:01:57.2]} 19. cxd5 {[%clk 0:02:11]} 19...
cxd5 {[%clk 0:01:51.7]} 20. Rac1 {[%clk 0:02:00.8]} 20... Rxc1 {[%clk
0:01:46.8]} 21. Bxc1 {[%clk 0:01:27.2]} 21... Rc8 {[%clk 0:01:42.5]} 22. Nf1
{[%clk 0:00:42.2]} 22... Ne4 {[%clk 0:01:03.6]} 23. Bb2 {[%clk 0:00:31.1]} 23...
Nxf3+ {[%clk 0:00:52.6]} 24. Qxf3 {[%clk 0:00:30.2]} 24... Rc2 {[%clk
0:00:52.5]} 25. Bd4 {[%clk 0:00:15.8]} 25... Rxf2 {[%clk 0:00:50]} 26. Qg4
{[%clk 0:00:16.3]} 26... Bc5 {[%clk 0:00:23]} 27. h5 {[%clk 0:00:04.9]} 27...
Bxd4 {[%clk 0:00:22.3]} 28. Rxd4 {[%clk 0:00:04.5]} 28... Rf5 {[%clk 0:00:15]}
29. hxg6 {[%clk 0:00:03.7]} 29... fxg6 {[%clk 0:00:12.6]} 30. Qxg6 {[%clk
0:00:03.4]} 30... Rg5 {[%clk 0:00:11.8]} 31. Qc6 {[%clk 0:00:02.4]} 31... Nxg3
{[%clk 0:00:10.9]} 32. Nxg3 {[%clk 0:00:01.8]} 32... Qxe3+ {[%clk 0:00:10.7]}
0-1

[Event "*** Titled Tuesday Blitz"]
[Site "Chess.com"]
[Date "2020.11.10"]
[Round "8"]
[White "Das_Virus_2020"]
[Black "Pertinhez76"]
[Result "1-0"]
[WhiteElo "2418"]
[BlackElo "2123"]
[TimeControl "180+1"]
[EndTime "11:33:27 PST"]
[Termination "Das_Virus_2020 won by checkmate"]

1. e4 {[%clk 0:03:00.9]} 1... e6 {[%clk 0:02:24.5]} 2. Qe2 {[%clk 0:02:59.2]}
2... c5 {[%clk 0:02:22.4]} 3. Nf3 {[%clk 0:02:58.5]} 3... Nc6 {[%clk 0:02:21.2]}
4. d3 {[%clk 0:02:56.8]} 4... g6 {[%clk 0:02:21.3]} 5. g3 {[%clk 0:02:56.7]}
5... Bg7 {[%clk 0:02:21.8]} 6. Bg2 {[%clk 0:02:56.8]} 6... Nge7 {[%clk
0:02:22.3]} 7. O-O {[%clk 0:02:56.7]} 7... d6 {[%clk 0:02:22.9]} 8. c4 {[%clk
0:02:56.7]} 8... O-O {[%clk 0:02:22.6]} 9. Nc3 {[%clk 0:02:56.7]} 9... a6 {[%clk
0:02:18]} 10. Rb1 {[%clk 0:02:47.9]} 10... Qc7 {[%clk 0:02:06.6]} 11. h4 {[%clk
0:02:44.1]} 11... Rb8 {[%clk 0:01:59.4]} 12. h5 {[%clk 0:02:40.4]} 12... b5
{[%clk 0:01:40]} 13. hxg6 {[%clk 0:02:39.7]} 13... hxg6 {[%clk 0:01:39]} 14.
cxb5 {[%clk 0:02:32.3]} 14... axb5 {[%clk 0:01:37.3]} 15. Bg5 {[%clk 0:02:30.2]}
15... b4 {[%clk 0:01:24]} 16. Nd1 {[%clk 0:02:11.5]} 16... Ba6 {[%clk
0:01:04.3]} 17. b3 {[%clk 0:02:07.9]} 17... Ne5 {[%clk 0:01:02.4]} 18. Nxe5
{[%clk 0:01:54.1]} 18... dxe5 {[%clk 0:01:03.3]} 19. Nb2 {[%clk 0:01:39.4]}
19... Rfd8 {[%clk 0:01:01.8]} 20. Rbc1 {[%clk 0:01:34.1]} 20... Rbc8 {[%clk
0:00:49.2]} 21. Be3 {[%clk 0:01:32.1]} 21... Qd6 {[%clk 0:00:44.6]} 22. Rfd1
{[%clk 0:01:28.7]} 22... Bf8 {[%clk 0:00:43.9]} 23. Nc4 {[%clk 0:01:22.6]} 23...
Qc7 {[%clk 0:00:41]} 24. Bf1 {[%clk 0:01:13.9]} 24... Nc6 {[%clk 0:00:39.3]} 25.
Nb2 {[%clk 0:01:10.3]} 25... Nd4 {[%clk 0:00:39]} 26. Qg4 {[%clk 0:01:03.1]}
26... Be7 {[%clk 0:00:32.6]} 27. Kg2 {[%clk 0:00:53.4]} 27... Kg7 {[%clk
0:00:32.3]} 28. Bxd4 {[%clk 0:00:50]} 28... Rxd4 {[%clk 0:00:31]} 29. Nc4 {[%clk
0:00:46.5]} 29... Rcd8 {[%clk 0:00:30.1]} 30. Be2 {[%clk 0:00:43.1]} 30... Bf6
{[%clk 0:00:28.6]} 31. Qf3 {[%clk 0:00:40.1]} 31... Bb7 {[%clk 0:00:27.7]} 32.
Qe3 {[%clk 0:00:39.1]} 32... Qb8 {[%clk 0:00:27.4]} 33. Rh1 {[%clk 0:00:37.5]}
33... Qa8 {[%clk 0:00:26.1]} 34. g4 {[%clk 0:00:25.9]} 34... Rh8 {[%clk
0:00:25.4]} 35. Rxh8 {[%clk 0:00:24.9]} 35... Qxh8 {[%clk 0:00:25.7]} 36. Rh1
{[%clk 0:00:25.1]} 36... Qa8 {[%clk 0:00:24.7]} 37. g5 {[%clk 0:00:22.9]} 37...
Be7 {[%clk 0:00:20.1]} 38. Nxe5 {[%clk 0:00:21.1]} 38... f5 {[%clk 0:00:14.6]}
39. gxf6+ {[%clk 0:00:20.5]} 39... Bxf6 {[%clk 0:00:14.6]} 40. Qh6+ {[%clk
0:00:19.6]} 40... Kg8 {[%clk 0:00:13.8]} 41. Qxg6+ {[%clk 0:00:19.6]} 41... Bg7
{[%clk 0:00:14.2]} 42. Qf7# {[%clk 0:00:19.7]} 1-0

[Event "*** Titled Tuesday Blitz"]
[Site "Chess.com"]
[Date "2020.11.10"]
[Round "8"]
[White "sboshaon21"]
[Black "CraiggoryC"]
[Result "1-0"]
[WhiteElo "2071"]
[BlackElo "2199"]
[TimeControl "180+1"]
[EndTime "11:33:32 PST"]
[Termination "sboshaon21 won on time"]

1. e4 {[%clk 0:03:00.9]} 1... e6 {[%clk 0:03:00.2]} 2. Nf3 {[%clk 0:02:59.9]}
2... d5 {[%clk 0:03:00.8]} 3. exd5 {[%clk 0:03:00.2]} 3... exd5 {[%clk
0:03:01.2]} 4. d4 {[%clk 0:03:00.8]} 4... Bd6 {[%clk 0:03:01.6]} 5. Bd3 {[%clk
0:03:00.4]} 5... Nc6 {[%clk 0:03:02.1]} 6. O-O {[%clk 0:03:00.4]} 6... Bg4
{[%clk 0:03:02.2]} 7. c3 {[%clk 0:03:00.2]} 7... Nge7 {[%clk 0:03:02.4]} 8. Bg5
{[%clk 0:02:58.3]} 8... f6 {[%clk 0:03:02.1]} 9. Bh4 {[%clk 0:02:57.8]} 9... Qd7
{[%clk 0:03:02.7]} 10. Nbd2 {[%clk 0:02:56.2]} 10... O-O-O {[%clk 0:03:02.1]}
11. b4 {[%clk 0:02:47.7]} 11... g5 {[%clk 0:02:49.8]} 12. Bg3 {[%clk 0:02:47]}
12... Ng6 {[%clk 0:02:43.3]} 13. Qc2 {[%clk 0:02:42.2]} 13... Nce7 {[%clk
0:02:29.8]} 14. c4 {[%clk 0:02:32.4]} 14... dxc4 {[%clk 0:02:07.9]} 15. Qxc4
{[%clk 0:02:30.2]} 15... h5 {[%clk 0:01:46.9]} 16. Bxd6 {[%clk 0:01:57.2]} 16...
Qxd6 {[%clk 0:01:46.3]} 17. Ne4 {[%clk 0:01:56.6]} 17... Qf4 {[%clk 0:01:33.7]}
18. Nfd2 {[%clk 0:01:36.9]} 18... Kb8 {[%clk 0:00:26.3]} 19. Rac1 {[%clk
0:01:12.7]} 19... Nd5 {[%clk 0:00:25.3]} 20. g3 {[%clk 0:00:49.5]} 20... Qf5
{[%clk 0:00:22]} 21. Nd6 {[%clk 0:00:48.5]} 21... Qe6 {[%clk 0:00:13.2]} 22.
Nxb7 {[%clk 0:00:30.5]} 22... Kxb7 {[%clk 0:00:12.6]} 23. Bxg6 {[%clk 0:00:29]}
23... f5 {[%clk 0:00:12.9]} 24. Qb5+ {[%clk 0:00:17.7]} 24... Nb6 {[%clk
0:00:11.4]} 25. Nc4 {[%clk 0:00:12.6]} 25... Qxg6 {[%clk 0:00:10.6]} 26. Na5+
{[%clk 0:00:12.6]} 26... Kc8 {[%clk 0:00:07.7]} 27. Qa6+ {[%clk 0:00:11.2]}
27... Kd7 {[%clk 0:00:07.8]} 28. Qb5+ {[%clk 0:00:10]} 28... c6 {[%clk 0:00:05]}
29. Nxc6 {[%clk 0:00:09.3]} 29... Ke6 {[%clk 0:00:02.9]} 30. Rfe1+ {[%clk
0:00:07.9]} 30... Kf7 {[%clk 0:00:02.4]} 31. Nxd8+ {[%clk 0:00:06]} 31... Rxd8
{[%clk 0:00:03.3]} 32. Rc7+ {[%clk 0:00:02.9]} 32... Kg8 {[%clk 0:00:02.8]} 33.
Qe5 {[%clk 0:00:01.9]} 1-0